[Event "Titled Tuesday Blitz March 15 Late 2022"]
[White "Sarkar, Justin"]
[Black "Kohler, Aran"]
[WhiteFideId "2010011"]
[BlackFideId "1002856"]
[WhiteElo "2038"]
[BlackElo "2283"]
[Result "1-0"]
[Round "08"]
[TimeControl "180+1"]
[Date "2022.03.16"]
[WhiteClock "0:00:14"]
[BlackClock "0:00:30"]

1. e4 {[%clk 0:02:43]}  c6 {[%clk 0:02:59]} 2. Nf3 {[%clk 0:02:36]}  d5 {[%clk 0:02:59]} 3. Nc3 {[%clk 0:02:36]}  Bg4 {[%clk 0:02:55]} 4. h3 {[%clk 0:02:35]}  Bxf3 {[%clk 0:02:55]} 5. Qxf3 {[%clk 0:02:35]}  e6 {[%clk 0:02:55]} 6. Be2 {[%clk 0:02:34]}  Nf6 {[%clk 0:02:54]} 7. d3 {[%clk 0:02:32]}  Bb4 {[%clk 0:02:50]} 8. O-O {[%clk 0:02:29]}  O-O {[%clk 0:02:44]} 9. e5 {[%clk 0:02:21]}  Nfd7 {[%clk 0:02:42]} 10. d4 {[%clk 0:02:20]}  c5 {[%clk 0:02:33]} 11. a3 {[%clk 0:02:14]}  Ba5 {[%clk 0:02:26]} 12. dxc5 {[%clk 0:02:08]}  Nxe5 {[%clk 0:02:20]} 13. Qg3 {[%clk 0:02:07]}  Ng6 {[%clk 0:02:15]} 14. Nb5 {[%clk 0:01:56]}  Na6 {[%clk 0:02:11]} 15. b4 {[%clk 0:01:53]}  Bc7 {[%clk 0:02:11]} 16. Nxc7 {[%clk 0:01:52]}  Qxc7 {[%clk 0:02:10]} 17. Qxc7 {[%clk 0:01:49]}  Nxc7 {[%clk 0:02:11]} 18. f4 {[%clk 0:01:46]}  Rfd8 {[%clk 0:01:57]} 19. Bb2 {[%clk 0:01:42]}  b6 {[%clk 0:01:54]} 20. cxb6 {[%clk 0:01:34]}  axb6 {[%clk 0:01:54]} 21. f5 {[%clk 0:01:33]}  exf5 {[%clk 0:01:47]} 22. Rxf5 {[%clk 0:01:31]}  Ne7 {[%clk 0:01:47]} 23. Rf2 {[%clk 0:01:26]}  Ne6 {[%clk 0:01:47]} 24. Bd3 {[%clk 0:01:22]}  Rac8 {[%clk 0:01:39]} 25. Re1 {[%clk 0:01:19]}  h6 {[%clk 0:01:25]} 26. h4 {[%clk 0:01:14]}  Rd7 {[%clk 0:01:18]} 27. g4 {[%clk 0:01:07]}  d4 {[%clk 0:01:08]} 28. Re5 {[%clk 0:00:57]}  Nd5 {[%clk 0:01:03]} 29. Bf5 {[%clk 0:00:47]}  Ne3 {[%clk 0:00:57]} 30. Rxe6 {[%clk 0:00:21]}  fxe6 {[%clk 0:00:57]} 31. Bxe6+ {[%clk 0:00:20]}  Kh7 {[%clk 0:00:50]} 32. Bxd7 {[%clk 0:00:19]}  Rc7 {[%clk 0:00:35]} 33. Bxd4 {[%clk 0:00:17]}  Nxc2 {[%clk 0:00:30]} 34. Bf5+ {[%clk 0:00:14]} 1-0


[Site "https://www.chess.com"]

[Event "Titled Tuesday Blitz March 15 Late 2022"]
[White "Sokolovsky, Yahli"]
[Black "Thavandiran, Shiyam"]
[WhiteFideId "2820242"]
[BlackFideId "2605058"]
[WhiteElo "1770"]
[BlackElo "2357"]
[Result "1-0"]
[Round "08"]
[TimeControl "180+1"]
[Date "2022.03.15"]
[WhiteClock "0:01:57"]
[BlackClock "0:00:46"]

1. b3 {[%clk 0:03:00]}  e5 {[%clk 0:02:50]} 2. Bb2 {[%clk 0:03:01]}  Nc6 {[%clk 0:02:50]} 3. e3 {[%clk 0:03:01]}  Nf6 {[%clk 0:02:50]} 4. Nf3 {[%clk 0:03:01]}  Bd6 {[%clk 0:02:49]} 5. d4 {[%clk 0:03:02]}  exd4 {[%clk 0:02:48]} 6. exd4 {[%clk 0:03:03]}  O-O {[%clk 0:02:47]} 7. Be2 {[%clk 0:03:03]}  Re8 {[%clk 0:02:45]} 8. O-O {[%clk 0:03:03]}  a5 {[%clk 0:02:41]} 9. a3 {[%clk 0:03:01]}  Ne4 {[%clk 0:02:36]} 10. Nbd2 {[%clk 0:02:59]}  Bf4 {[%clk 0:02:34]} 11. Nxe4 {[%clk 0:02:57]}  Rxe4 {[%clk 0:02:35]} 12. d5 {[%clk 0:02:54]}  Ne5 {[%clk 0:02:26]} 13. Nd2 {[%clk 0:02:27]}  Bxd2 {[%clk 0:02:22]} 14. Qxd2 {[%clk 0:02:28]}  Ng6 {[%clk 0:02:17]} 15. Bf3 {[%clk 0:02:23]}  Re8 {[%clk 0:02:07]} 16. d6 {[%clk 0:02:23]}  cxd6 {[%clk 0:02:08]} 17. Bd5 {[%clk 0:02:16]}  Rb8 {[%clk 0:01:16]} 18. Rfe1 {[%clk 0:02:16]}  b6 {[%clk 0:01:13]} 19. Qd4 {[%clk 0:01:57]}  Ne5 {[%clk 0:00:46]} 20. f4 {[%clk 0:01:57]} 1-0


[Site "https://www.chess.com"]

[Event "Titled Tuesday Blitz March 15 Late 2022"]
[White "Svane, Rasmus"]
[Black "Babazada, Khazar"]
[WhiteFideId "4657101"]
[BlackFideId "13413554"]
[WhiteElo "2645"]
[BlackElo "2418"]
[Result "1/2-1/2"]
[Round "08"]
[TimeControl "180+1"]
[Date "2022.03.15"]
[WhiteClock "0:00:02"]
[BlackClock "0:00:10"]

1. Nf3 {[%clk 0:03:00]}  Nf6 {[%clk 0:03:00]} 2. g3 {[%clk 0:03:00]}  g6 {[%clk 0:03:00]} 3. Bg2 {[%clk 0:03:01]}  b6 {[%clk 0:03:00]} 4. O-O {[%clk 0:02:59]}  Bb7 {[%clk 0:03:00]} 5. d4 {[%clk 0:03:00]}  Bg7 {[%clk 0:03:00]} 6. c4 {[%clk 0:03:00]}  O-O {[%clk 0:03:00]} 7. Re1 {[%clk 0:03:00]}  d6 {[%clk 0:03:00]} 8. Qc2 {[%clk 0:02:56]}  Be4 {[%clk 0:02:59]} 9. Qb3 {[%clk 0:02:53]}  Nbd7 {[%clk 0:02:48]} 10. Nc3 {[%clk 0:02:52]}  Bb7 {[%clk 0:02:48]} 11. e4 {[%clk 0:02:53]}  e5 {[%clk 0:02:48]} 12. Qc2 {[%clk 0:02:48]}  Re8 {[%clk 0:02:47]} 13. d5 {[%clk 0:02:43]}  a5 {[%clk 0:02:47]} 14. b3 {[%clk 0:02:39]}  Nc5 {[%clk 0:02:40]} 15. Bd2 {[%clk 0:02:37]}  c6 {[%clk 0:02:40]} 16. dxc6 {[%clk 0:02:21]}  Bxc6 {[%clk 0:02:39]} 17. Rad1 {[%clk 0:02:21]}  Qc7 {[%clk 0:02:38]} 18. h3 {[%clk 0:02:16]}  Qb7 {[%clk 0:02:38]} 19. Nh2 {[%clk 0:02:16]}  Ne6 {[%clk 0:02:34]} 20. Be3 {[%clk 0:02:15]}  Nd4 {[%clk 0:02:33]} 21. Bxd4 {[%clk 0:02:10]}  exd4 {[%clk 0:02:34]} 22. Rxd4 {[%clk 0:02:09]}  Re6 {[%clk 0:02:17]} 23. Red1 {[%clk 0:01:52]}  Qc7 {[%clk 0:02:10]} 24. Nf1 {[%clk 0:01:52]}  Rae8 {[%clk 0:02:05]} 25. Ne3 {[%clk 0:01:52]}  Qe7 {[%clk 0:01:41]} 26. Qd2 {[%clk 0:01:45]}  Bh6 {[%clk 0:01:21]} 27. Rxd6 {[%clk 0:01:29]}  Bxe3 {[%clk 0:01:18]} 28. Rxe6 {[%clk 0:01:28]}  Bxd2 {[%clk 0:01:12]} 29. Rxe7 {[%clk 0:01:24]}  Bxc3 {[%clk 0:01:13]} 30. Rxe8+ {[%clk 0:01:22]}  Nxe8 {[%clk 0:01:14]} 31. Rd8 {[%clk 0:01:14]}  Kf8 {[%clk 0:01:12]} 32. Rb8 {[%clk 0:01:10]}  Bd4 {[%clk 0:01:11]} 33. e5 {[%clk 0:01:06]}  Bxg2 {[%clk 0:01:12]} 34. Kxg2 {[%clk 0:01:07]}  f6 {[%clk 0:01:09]} 35. exf6 {[%clk 0:01:02]}  h6 {[%clk 0:01:06]} 36. f4 {[%clk 0:00:47]}  Kf7 {[%clk 0:01:06]} 37. Kf3 {[%clk 0:00:45]}  Nxf6 {[%clk 0:01:03]} 38. g4 {[%clk 0:00:46]}  Nd7 {[%clk 0:01:00]} 39. Rb7 {[%clk 0:00:42]}  Ke6 {[%clk 0:00:59]} 40. Rc7 {[%clk 0:00:38]}  Kd6 {[%clk 0:00:54]} 41. Rc8 {[%clk 0:00:37]}  g5 {[%clk 0:00:54]} 42. Rg8 {[%clk 0:00:33]}  gxf4 {[%clk 0:00:49]} 43. Rg6+ {[%clk 0:00:28]}  Ke5 {[%clk 0:00:49]} 44. Rxh6 {[%clk 0:00:28]}  Be3 {[%clk 0:00:49]} 45. h4 {[%clk 0:00:22]}  Nf8 {[%clk 0:00:49]} 46. g5 {[%clk 0:00:22]}  Ne6 {[%clk 0:00:49]} 47. g6 {[%clk 0:00:16]}  Bc5 {[%clk 0:00:37]} 48. Rh8 {[%clk 0:00:08]}  Kf5 {[%clk 0:00:33]} 49. h5 {[%clk 0:00:08]}  Ng5+ {[%clk 0:00:32]} 50. Kg2 {[%clk 0:00:09]}  f3+ {[%clk 0:00:31]} 51. Kg3 {[%clk 0:00:10]}  Bd6+ {[%clk 0:00:29]} 52. Kf2 {[%clk 0:00:10]}  Bc5+ {[%clk 0:00:29]} 53. Kg3 {[%clk 0:00:07]}  Kf6 {[%clk 0:00:27]} 54. Rg8 {[%clk 0:00:04]}  Bd6+ {[%clk 0:00:26]} 55. Kf2 {[%clk 0:00:03]}  Bc5+ {[%clk 0:00:26]} 56. Kg3 {[%clk 0:00:04]}  f2 {[%clk 0:00:26]} 57. Kg2 {[%clk 0:00:04]}  Nf3 {[%clk 0:00:24]} 58. g7 {[%clk 0:00:03]}  Kf7 {[%clk 0:00:23]} 59. Rf8+ {[%clk 0:00:02]}  Bxf8 {[%clk 0:00:20]} 60. gxf8=Q+ {[%clk 0:00:03]}  Kxf8 {[%clk 0:00:21]} 61. Kxf2 {[%clk 0:00:04]}  Nd4 {[%clk 0:00:17]} 62. Ke3 {[%clk 0:00:04]}  Nc2+ {[%clk 0:00:16]} 63. Kd2 {[%clk 0:00:04]}  Nb4 {[%clk 0:00:12]} 64. a3 {[%clk 0:00:05]}  Na6 {[%clk 0:00:11]} 65. Kc3 {[%clk 0:00:05]}  Kg7 {[%clk 0:00:11]} 66. Kd4 {[%clk 0:00:04]}  Nc5 {[%clk 0:00:07]} 67. b4 {[%clk 0:00:05]}  axb4 {[%clk 0:00:08]} 68. axb4 {[%clk 0:00:05]}  Na6 {[%clk 0:00:08]} 69. Kc3 {[%clk 0:00:03]}  Kh6 {[%clk 0:00:08]} 70. c5 {[%clk 0:00:02]}  bxc5 {[%clk 0:00:09]} 71. bxc5 {[%clk 0:00:02]}  Nxc5 {[%clk 0:00:09]} 72. Kc4 {[%clk 0:00:02]}  Kxh5 {[%clk 0:00:10]} 1/2-1/2


[Site "https://www.chess.com"]

[Event "Titled Tuesday Blitz March 15 Late 2022"]
[White "Svicevic, Rastko"]
[Black "Foisor, Sabina-Francesca"]
[WhiteFideId "916315"]
[BlackFideId "1212915"]
[WhiteElo "2132"]
[BlackElo "2243"]
[Result "1-0"]
[Round "08"]
[TimeControl "180+1"]
[Date "2022.03.16"]
[WhiteClock "0:00:22"]
[BlackClock "0:00:21"]

1. d4 {[%clk 0:02:53]}  d5 {[%clk 0:02:58]} 2. Bg5 {[%clk 0:02:53]}  Nf6 {[%clk 0:02:57]} 3. Bxf6 {[%clk 0:02:53]}  exf6 {[%clk 0:02:57]} 4. e3 {[%clk 0:02:54]}  g6 {[%clk 0:02:58]} 5. g3 {[%clk 0:02:54]}  Bg7 {[%clk 0:02:58]} 6. Bg2 {[%clk 0:02:55]}  O-O {[%clk 0:02:58]} 7. Ne2 {[%clk 0:02:55]}  c6 {[%clk 0:02:57]} 8. O-O {[%clk 0:02:51]}  Bg4 {[%clk 0:02:55]} 9. Nd2 {[%clk 0:02:48]}  Qc8 {[%clk 0:02:52]} 10. Re1 {[%clk 0:02:44]}  Na6 {[%clk 0:02:48]} 11. c4 {[%clk 0:02:35]}  dxc4 {[%clk 0:02:46]} 12. Nxc4 {[%clk 0:02:36]}  Qd7 {[%clk 0:02:30]} 13. Qb3 {[%clk 0:02:29]}  Be6 {[%clk 0:02:24]} 14. Qc3 {[%clk 0:01:58]}  Nc7 {[%clk 0:02:19]} 15. e4 {[%clk 0:01:54]}  f5 {[%clk 0:02:16]} 16. Ne5 {[%clk 0:01:47]}  Qd6 {[%clk 0:02:11]} 17. Rad1 {[%clk 0:01:35]}  fxe4 {[%clk 0:02:08]} 18. Bxe4 {[%clk 0:01:34]}  Bd5 {[%clk 0:02:03]} 19. Nf4 {[%clk 0:01:29]}  Rad8 {[%clk 0:01:55]} 20. Nxd5 {[%clk 0:01:25]}  Nxd5 {[%clk 0:01:56]} 21. Qb3 {[%clk 0:01:23]}  Nb6 {[%clk 0:01:40]} 22. a4 {[%clk 0:01:15]}  Rb8 {[%clk 0:01:15]} 23. a5 {[%clk 0:01:09]}  Nd7 {[%clk 0:01:14]} 24. Nc4 {[%clk 0:01:08]}  Qc7 {[%clk 0:01:13]} 25. a6 {[%clk 0:01:00]}  b5 {[%clk 0:01:07]} 26. Ne3 {[%clk 0:00:54]}  c5 {[%clk 0:01:06]} 27. Nd5 {[%clk 0:00:49]}  Qa5 {[%clk 0:01:00]} 28. Ne7+ {[%clk 0:00:47]}  Kh8 {[%clk 0:00:51]} 29. Nc6 {[%clk 0:00:48]}  Qxa6 {[%clk 0:00:44]} 30. Nxb8 {[%clk 0:00:47]}  Rxb8 {[%clk 0:00:42]} 31. Qxf7 {[%clk 0:00:44]}  Nf6 {[%clk 0:00:39]} 32. dxc5 {[%clk 0:00:36]}  Rf8 {[%clk 0:00:33]} 33. Qe7 {[%clk 0:00:29]}  Qa5 {[%clk 0:00:20]} 34. Bg2 {[%clk 0:00:27]}  Re8 {[%clk 0:00:19]} 35. Qxe8+ {[%clk 0:00:25]}  Nxe8 {[%clk 0:00:20]} 36. Rxe8+ {[%clk 0:00:24]}  Bf8 {[%clk 0:00:20]} 37. Rxf8+ {[%clk 0:00:24]}  Kg7 {[%clk 0:00:21]} 38. Rfd8 {[%clk 0:00:22]}  Qa4 {[%clk 0:00:21]} 39. c6 {[%clk 0:00:22]} 1-0


[Site "https://www.chess.com"]

[Event "Titled Tuesday Blitz March 15 Late 2022"]
[White "Tabatabaei, M. Amin"]
[Black "Nakamura, Hikaru"]
[WhiteFideId "12521213"]
[BlackFideId "2016192"]
[WhiteElo "2544"]
[BlackElo "2850"]
[Result "1/2-1/2"]
[Round "08"]
[TimeControl "180+1"]
[Date "2022.03.15"]
[WhiteClock "0:00:02"]
[BlackClock "0:00:05"]

1. d4 {[%clk 0:02:59]}  f5 {[%clk 0:03:00]} 2. g3 {[%clk 0:02:59]}  Nf6 {[%clk 0:02:59]} 3. Bg2 {[%clk 0:03:00]}  g6 {[%clk 0:03:00]} 4. Nf3 {[%clk 0:03:01]}  Bg7 {[%clk 0:03:01]} 5. O-O {[%clk 0:03:01]}  O-O {[%clk 0:03:01]} 6. b3 {[%clk 0:03:02]}  d6 {[%clk 0:03:02]} 7. Bb2 {[%clk 0:03:03]}  c6 {[%clk 0:03:02]} 8. Nbd2 {[%clk 0:03:04]}  a5 {[%clk 0:03:01]} 9. a4 {[%clk 0:03:04]}  Na6 {[%clk 0:03:01]} 10. e3 {[%clk 0:03:05]}  Kh8 {[%clk 0:03:00]} 11. Qe2 {[%clk 0:03:04]}  Be6 {[%clk 0:02:59]} 12. Rfe1 {[%clk 0:03:05]}  Nb4 {[%clk 0:02:58]} 13. Rac1 {[%clk 0:03:02]}  Na2 {[%clk 0:02:58]} 14. Ra1 {[%clk 0:03:02]}  Nb4 {[%clk 0:02:59]} 15. Rac1 {[%clk 0:02:56]}  Bg8 {[%clk 0:02:59]} 16. c3 {[%clk 0:02:51]}  Na6 {[%clk 0:02:57]} 17. Ba1 {[%clk 0:02:31]}  Qc7 {[%clk 0:02:55]} 18. c4 {[%clk 0:02:26]}  Nb4 {[%clk 0:02:49]} 19. e4 {[%clk 0:02:26]}  fxe4 {[%clk 0:02:47]} 20. Nxe4 {[%clk 0:02:27]}  Rae8 {[%clk 0:02:25]} 21. Neg5 {[%clk 0:02:19]}  e6 {[%clk 0:02:20]} 22. c5 {[%clk 0:02:18]}  h6 {[%clk 0:02:07]} 23. cxd6 {[%clk 0:02:16]}  Qxd6 {[%clk 0:02:08]} 24. Ne4 {[%clk 0:02:16]}  Nxe4 {[%clk 0:02:05]} 25. Qxe4 {[%clk 0:02:17]}  Bh7 {[%clk 0:01:58]} 26. Ne5 {[%clk 0:02:12]}  g5 {[%clk 0:01:57]} 27. Qe2 {[%clk 0:02:03]}  Kg8 {[%clk 0:01:50]} 28. Red1 {[%clk 0:01:59]}  Bf5 {[%clk 0:01:46]} 29. Bc3 {[%clk 0:01:52]}  Rd8 {[%clk 0:01:43]} 30. Qe1 {[%clk 0:01:40]}  Rfe8 {[%clk 0:01:38]} 31. Nc4 {[%clk 0:01:31]}  Qc7 {[%clk 0:01:34]} 32. Bxb4 {[%clk 0:01:20]}  axb4 {[%clk 0:01:34]} 33. Ne3 {[%clk 0:01:17]}  Qd6 {[%clk 0:01:11]} 34. Rc4 {[%clk 0:01:09]}  Bg6 {[%clk 0:01:11]} 35. Qxb4 {[%clk 0:01:01]}  Qxb4 {[%clk 0:01:10]} 36. Rxb4 {[%clk 0:01:02]}  Re7 {[%clk 0:01:10]} 37. Rc4 {[%clk 0:00:43]}  Red7 {[%clk 0:01:10]} 38. Bh3 {[%clk 0:00:40]}  Kf7 {[%clk 0:01:11]} 39. Kf1 {[%clk 0:00:35]}  Bxd4 {[%clk 0:01:06]} 40. Ke1 {[%clk 0:00:21]}  c5 {[%clk 0:01:00]} 41. Bg2 {[%clk 0:00:18]}  b6 {[%clk 0:01:00]} 42. Bf3 {[%clk 0:00:14]}  Kg7 {[%clk 0:00:56]} 43. Be2 {[%clk 0:00:12]}  Bf7 {[%clk 0:00:56]} 44. Rcc1 {[%clk 0:00:12]}  e5 {[%clk 0:00:52]} 45. Nc4 {[%clk 0:00:10]}  Bxc4 {[%clk 0:00:42]} 46. Bxc4 {[%clk 0:00:11]}  Bxf2+ {[%clk 0:00:41]} 47. Ke2 {[%clk 0:00:11]}  Bd4 {[%clk 0:00:41]} 48. Rf1 {[%clk 0:00:11]}  e4 {[%clk 0:00:40]} 49. Rcd1 {[%clk 0:00:12]}  Re7 {[%clk 0:00:28]} 50. Rf5 {[%clk 0:00:12]}  Rd6 {[%clk 0:00:29]} 51. Rdf1 {[%clk 0:00:11]}  Bf6 {[%clk 0:00:29]} 52. Rd5 {[%clk 0:00:11]}  Rxd5 {[%clk 0:00:29]} 53. Bxd5 {[%clk 0:00:12]}  e3 {[%clk 0:00:28]} 54. Rf3 {[%clk 0:00:12]}  Bd4 {[%clk 0:00:27]} 55. Bc4 {[%clk 0:00:13]}  Rd7 {[%clk 0:00:26]} 56. g4 {[%clk 0:00:13]}  Be5 {[%clk 0:00:24]} 57. Rxe3 {[%clk 0:00:11]}  Bxh2 {[%clk 0:00:24]} 58. Rd3 {[%clk 0:00:11]}  Re7+ {[%clk 0:00:24]} 59. Kf3 {[%clk 0:00:12]}  Be5 {[%clk 0:00:21]} 60. Rd8 {[%clk 0:00:11]}  Bc7 {[%clk 0:00:17]} 61. Rd3 {[%clk 0:00:08]}  Kf6 {[%clk 0:00:17]} 62. Re3 {[%clk 0:00:08]}  Be5 {[%clk 0:00:16]} 63. Rd3 {[%clk 0:00:08]}  Bd4 {[%clk 0:00:17]} 64. Kg2 {[%clk 0:00:04]}  Re2+ {[%clk 0:00:17]} 65. Kf1 {[%clk 0:00:04]}  Rf2+ {[%clk 0:00:17]} 66. Ke1 {[%clk 0:00:04]}  Rg2 {[%clk 0:00:17]} 67. Rf3+ {[%clk 0:00:04]}  Ke7 {[%clk 0:00:17]} 68. Rh3 {[%clk 0:00:03]}  Rxg4 {[%clk 0:00:16]} 69. Rxh6 {[%clk 0:00:03]}  Rg2 {[%clk 0:00:16]} 70. Kf1 {[%clk 0:00:03]}  Rf2+ {[%clk 0:00:16]} 71. Ke1 {[%clk 0:00:04]}  g4 {[%clk 0:00:16]} 72. Rg6 {[%clk 0:00:04]}  Rf4 {[%clk 0:00:15]} 73. Be2 {[%clk 0:00:04]}  g3 {[%clk 0:00:15]} 74. Kd1 {[%clk 0:00:02]}  Bf2 {[%clk 0:00:14]} 75. Kc2 {[%clk 0:00:03]}  Kf7 {[%clk 0:00:14]} 76. Rg5 {[%clk 0:00:02]}  Kf6 {[%clk 0:00:14]} 77. Rg8 {[%clk 0:00:03]}  Rh4 {[%clk 0:00:13]} 78. Bf3 {[%clk 0:00:03]}  Ke5 {[%clk 0:00:14]} 79. Ba8 {[%clk 0:00:02]}  c4 {[%clk 0:00:13]} 80. bxc4 {[%clk 0:00:02]}  Rxc4+ {[%clk 0:00:14]} 81. Kb3 {[%clk 0:00:03]}  Rc1 {[%clk 0:00:14]} 82. Bb7 {[%clk 0:00:03]}  Kd4 {[%clk 0:00:12]} 83. Rg4+ {[%clk 0:00:03]}  Ke3 {[%clk 0:00:11]} 84. Rg8 {[%clk 0:00:03]}  Ke2 {[%clk 0:00:12]} 85. Re8+ {[%clk 0:00:04]}  Kf1 {[%clk 0:00:12]} 86. Rg8 {[%clk 0:00:04]}  Rb1+ {[%clk 0:00:12]} 87. Kc4 {[%clk 0:00:04]}  Be1 {[%clk 0:00:12]} 88. Bc6 {[%clk 0:00:03]}  Rc1+ {[%clk 0:00:12]} 89. Kb5 {[%clk 0:00:03]}  Bf2 {[%clk 0:00:10]} 90. Bb7 {[%clk 0:00:02]}  Rc5+ {[%clk 0:00:11]} 91. Kb4 {[%clk 0:00:02]}  Be1+ {[%clk 0:00:11]} 92. Kb3 {[%clk 0:00:02]}  Re5 {[%clk 0:00:12]} 93. Ba6+ {[%clk 0:00:02]}  Kg1 {[%clk 0:00:11]} 94. Bb7 {[%clk 0:00:03]}  Re2 {[%clk 0:00:09]} 95. Kc4 {[%clk 0:00:03]}  g2 {[%clk 0:00:08]} 96. Kb5 {[%clk 0:00:03]}  Ba5 {[%clk 0:00:08]} 97. Rg6 {[%clk 0:00:02]}  Kf1 {[%clk 0:00:08]} 98. Rf6+ {[%clk 0:00:02]}  Rf2 {[%clk 0:00:06]} 99. Bxg2+ {[%clk 0:00:02]}  Kxg2 {[%clk 0:00:07]} 100. Rxb6 {[%clk 0:00:03]}  Rf5+ {[%clk 0:00:06]} 101. Ka6 {[%clk 0:00:03]}  Be1 {[%clk 0:00:06]} 102. Rb5 {[%clk 0:00:03]}  Rf6+ {[%clk 0:00:06]} 103. Kb7 {[%clk 0:00:04]}  Rf7+ {[%clk 0:00:07]} 104. Ka6 {[%clk 0:00:03]}  Rf2 {[%clk 0:00:06]} 105. a5 {[%clk 0:00:03]}  Ra2 {[%clk 0:00:07]} 106. Kb6 {[%clk 0:00:04]}  Kf3 {[%clk 0:00:07]} 107. a6 {[%clk 0:00:04]}  Ke4 {[%clk 0:00:08]} 108. Kb7 {[%clk 0:00:04]}  Bf2 {[%clk 0:00:08]} 109. Rh5 {[%clk 0:00:02]}  Be3 {[%clk 0:00:07]} 110. Rb5 {[%clk 0:00:02]}  Ra1 {[%clk 0:00:06]} 111. Rb2 {[%clk 0:00:02]}  Kd5 {[%clk 0:00:06]} 112. Rb5+ {[%clk 0:00:03]}  Kd6 {[%clk 0:00:06]} 113. Rb3 {[%clk 0:00:03]}  Bc5 {[%clk 0:00:06]} 114. Rb5 {[%clk 0:00:03]}  Bg1 {[%clk 0:00:05]} 115. Rb2 {[%clk 0:00:03]}  Rf1 {[%clk 0:00:06]} 116. Rd2+ {[%clk 0:00:03]}  Ke6 {[%clk 0:00:06]} 117. Re2+ {[%clk 0:00:03]}  Kd5 {[%clk 0:00:07]} 118. Rd2+ {[%clk 0:00:04]}  Kc4 {[%clk 0:00:08]} 119. Rc2+ {[%clk 0:00:04]}  Kb5 {[%clk 0:00:08]} 120. Rb2+ {[%clk 0:00:04]}  Kc4 {[%clk 0:00:08]} 121. Rc2+ {[%clk 0:00:03]}  Kb4 {[%clk 0:00:09]} 122. Rb2+ {[%clk 0:00:03]}  Ka3 {[%clk 0:00:10]} 123. Rc2 {[%clk 0:00:04]}  Rf7+ {[%clk 0:00:10]} 124. Rc7 {[%clk 0:00:04]}  Rf4 {[%clk 0:00:10]} 125. a7 {[%clk 0:00:03]}  Rb4+ {[%clk 0:00:10]} 126. Kc8 {[%clk 0:00:04]}  Ra4 {[%clk 0:00:10]} 127. Kb8 {[%clk 0:00:04]}  Rb4+ {[%clk 0:00:06]} 128. Kc8 {[%clk 0:00:03]}  Ra4 {[%clk 0:00:04]} 129. Kb8 {[%clk 0:00:03]}  Bh2 {[%clk 0:00:04]} 130. a8=Q {[%clk 0:00:03]}  Bxc7+ {[%clk 0:00:05]} 131. Kb7 {[%clk 0:00:04]}  Ba5 {[%clk 0:00:05]} 132. Qf8+ {[%clk 0:00:04]}  Rb4+ {[%clk 0:00:05]} 133. Ka6 {[%clk 0:00:02]}  Bb6 {[%clk 0:00:05]} 134. Qxb4+ {[%clk 0:00:02]}  Kxb4 {[%clk 0:00:05]} 1/2-1/2


[Site "https://www.chess.com"]